[Event "American Cup Women Elimination 2023"]
[Site "Saint Louis"]
[Date "2023.03.19"]
[Round "1.1"]
[White "Zatonskih, Anna"]
[Black "Pourkashiyan, Atousa"]
[Result "1/2-1/2"]
[ECO "E36"]
[WhiteElo "2337"]
[BlackElo "2313"]
[Annotator "TA"]
[PlyCount "94"]
[EventDate "2023.03.15"]
[EventType "k.o."]
[EventCountry "USA"]
[SourceTitle "playchess.com"]
[Source "ChessBase"]
[SourceQuality "1"]
[TimeControl "1500+10"]

{[%evp 15,94,13,2,0,20,-10,11,-3,-3,-9,0,0,0,0,0,0,0,0,0,0,0,-29,-21,-49,0,0,7,0,7,7,7,12,13,0,91,0,3,0,0,0,0,0,0,0,0,0,0,0,0,0,0,0,0,0,0,0,0,0,0,0,0,0,0,0,0,0,0,0,0,0,0,0,0,0,0,0,0,0,0,0,0]} 1. d4 {[%emt 0:00:02]} Nf6 {[%emt 0:00:03]} 2. c4 {[%emt 0:00:01]} e6 {[%emt 0:00:02]} 3. Nc3 {[%emt 0:00:02]} Bb4 {[%emt 0:00:03]} 4. Qc2 {[%emt 0:00:07]} d5 {[%emt 0:00:09]} 5. a3 {[%emt 0:00:22]} Bxc3+ {[%emt 0:00:13]} 6. Qxc3 {[%emt 0:00:02]} O-O {[%emt 0:00:03]} 7. Nf3 {[%emt 0:02:37]} dxc4 {[%emt 0:02:48]} 8. Qxc4 {[%emt 0:00:19]} b6 {[%emt 0:00:05] Black is weak on the dark squares} 9. Bg5 {[%emt 0:00:40] E36: Nimzo-Indian: Classical: 4...d5 5 a3.} Ba6 {[%emt 0:00:05]} 10. Qc2 {[%emt 0:00:02]} Nbd7 {[%emt 0:01:08] 10...h6 is the modern continuation.} (10... h6 $5 {[%cal Rh6g5]} 11. Bxf6 Qxf6 $11) 11. Ne5 {[%emt 0:06:28]} c5 {[%emt 0:00:03]} 12. Nxd7 $1 {[%emt 0:00:31]} Qxd7 {[%emt 0:00:03]} 13. Bxf6 {[%emt 0:00:02]} gxf6 {[%emt 0:00:02]} 14. dxc5 {[%emt 0:00:09]} bxc5 {[%emt 0:02:15]} 15. h4 {[%emt 0:00:47] [#]} Rfd8 $146 {[%emt 0:01:42]} ({Predecessor:} 15... Rab8 16. Rb1 Rfd8 17. Rh3 Rb6 18. e4 c4 19. Be2 Qc7 20. Rg3+ Kf8 21. b4 Rd4 {0-1 Cramling Bellon,A (2025)-Erenberg,A (2409) Gibraltar Masters 17th 2019 (7)}) 16. Rh3 {[%emt 0:02:22]} Rab8 {[%emt 0:01:37]} 17. Rg3+ {[%emt 0:00:54]} Kh8 {[%emt 0:00:03]} 18. Rc3 {[%emt 0:00:06]} c4 {[%emt 0:04:09]} 19. e3 {[%emt 0:01:56]} Qb7 {[%emt 0:01:49]} (19... Qd5 $1 $15 {should be considered.}) 20. Rb1 $11 {[%emt 0:00:40]} Rd6 {[%emt 0:05:07]} 21. b4 {[%emt 0:02:35]} cxb3 {[%emt 0:04:34]} 22. Rcxb3 {[%emt 0:00:08]} (22. Rbxb3 $5 Rb6 $8 23. Bxa6 (23. Rc7 $2 Rxb3 24. Rxb7 R3xb7 $19) 23... Qxa6 24. Rxb6 Rxb6 25. Qd3 $11) 22... Rb6 {[%emt 0:00:06]} 23. Rxb6 {[%emt 0:00:09]} axb6 {[%emt 0:00:01]} 24. Qc3 {[%emt 0:00:34]} e5 {[%emt 0:00:29]} (24... Kg7 $11 {keeps the balance.}) 25. Rc1 {[%emt 0:01:31]} (25. Bxa6 $16 Qxa6 26. Qc7) 25... Kg7 {[%emt 0:01:17] The position is equal.} 26. Qc7 {[%emt 0:01:05]} Qxc7 {[%emt 0:00:44]} 27. Rxc7 {[%emt 0:00:02][%cal Bc1c7,Bc7b7,Bb7b6][%mdl 32]} Bxf1 {[%emt 0:00:02]} 28. Kxf1 {[%emt 0:00:01][%mdl 4096] Endgame KR-KR} Ra8 {[%emt 0:00:01]} 29. Rb7 {[%emt 0:00:05]} Rxa3 {[%emt 0:00:10]} 30. Rxb6 {[%emt 0:00:04]} h5 {[%emt 0:00:29]} 31. g3 {[%emt 0:00:07]} Ra4 {[%emt 0:00:05]} 32. Ke2 {[%emt 0:00:07]} Ra3 {[%emt 0:00:12]} 33. Kf3 {[%emt 0:00:05]} Kg6 {[%emt 0:00:20]} 34. Rb4 {[%emt 0:01:04]} Ra2 {[%emt 0:00:08]} 35. Rb8 {[%emt 0:00:08]} Rc2 {[%emt 0:00:06]} 36. Rg8+ {[%emt 0:00:10]} Kh7 {[%emt 0:00:02]} 37. Rf8 {[%emt 0:00:05]} Kg6 {[%emt 0:00:05]} 38. Ra8 {[%emt 0:00:02]} Rb2 {[%emt 0:00:04]} 39. Ra3 {[%emt 0:00:04]} Rc2 {[%emt 0:00:07]} 40. Ra4 {[%emt 0:00:27]} Kf5 {[%emt 0:00:38]} 41. e4+ {[%emt 0:01:11]} Kg6 {[%emt 0:00:02]} 42. Ra3 {[%emt 0:00:01]} Rb2 {[%emt 0:00:21]} 43. Rc3 {[%emt 0:00:45]} Ra2 {[%emt 0:00:05]} 44. Rd3 {[%emt 0:00:13]} Rb2 {[%emt 0:00:07]} 45. Rc3 {[%emt 0:00:05]} Ra2 {[%emt 0:00:02]} 46. Rd3 {[%emt 0:00:01]} Rb2 {[%emt 0:00:02]} 47. Rc3 {[%emt 0:00:02]} Ra2 {[%emt 0:00:02] Weighted Error Value: White=0.11 (very precise) /Black=0.11 (very precise)} 1/2-1/2

[Event "American Cup Women Elimination 2023"]
[Site "Saint Louis"]
[Date "2023.03.19"]
[Round "1.1"]
[White "Nemcova, Katerina"]
[Black "Abrahamyan, Tatev"]
[Result "0-1"]
[ECO "A18"]
[WhiteElo "2325"]
[BlackElo "2294"]
[Annotator "TA"]
[PlyCount "114"]
[EventDate "2023.03.15"]
[EventType "k.o."]
[EventCountry "USA"]
[SourceTitle "playchess.com"]
[Source "ChessBase"]
[SourceQuality "1"]
[TimeControl "1500+10"]

{[%evp 10,114,26,16,41,22,18,14,34,37,75,43,65,-1,50,56,50,47,35,53,63,49,50,63,148,54,64,21,43,36,45,-18,-21,-22,-12,-4,-7,-10,-7,-36,-36,-23,-22,-42,0,0,0,0,0,0,0,0,10,-20,0,-20,-20,-20,-20,-60,-60,-60,-60,-77,-60,-60,-60,-70,-71,-164,-184,-187,0,-390,-383,-208,-165,-436,0,0,972,591,591,566,758,751,716,0,0,0,0,0,547,-375,-366,-3795,-3733,-3733,-1765,-1454,-1353,-12823,-12810,-29994,-29995,-29995,-29996]} 1. c4 {[%emt 0:00:03]} Nf6 {[%emt 0:00:10]} 2. Nc3 {[%emt 0:00:02]} e6 {[%emt 0:00:20][%cal Be7e6,Be6d5][%mdl 32]} 3. e4 {[%emt 0:00:03]} d5 {[%emt 0:00:13]} 4. cxd5 {[%emt 0:00:12]} exd5 {[%emt 0:00:06]} 5. e5 {[%emt 0:00:04]} Ne4 {[%emt 0:01:31]} 6. Nf3 {[%emt 0:00:06]} Be7 {[%emt 0:00:15] A18: English Opening: Flohr-Mikenas System (1 c4 Nf6 2 Nc3 e6 3 e4).} 7. d4 {[%emt 0:00:08]} c5 {[%emt 0:03:05]} 8. Bd3 {[%emt 0:00:13]} Nxc3 {[%emt 0:03:02] The position is equal.} (8... Qa5 $5) 9. bxc3 {[%emt 0:00:03]} Bg4 {[%emt 0:00:13]} 10. O-O {[%emt 0:02:01]} (10. h3 $5 {[%cal Rh3g4]} Be6 11. Rb1 $14) 10... Nc6 {[%emt 0:00:04]} 11. Be3 {[%emt 0:01:35] [#]} (11. h3 $14 Be6 12. dxc5) 11... O-O $146 {[%emt 0:01:14]} (11... c4 $11 12. Bc2 b5) ({Predecessor:} 11... cxd4 12. cxd4 h6 13. h3 Bxf3 14. Qxf3 Rc8 15. Rab1 b6 16. Qg3 Kf8 17. Rfc1 Nb4 18. Rxc8 Qxc8 {1-0 Rosen,E (2360)-Rensch,D (2402) I'M Not A GM Speed Chess blitz 2022 (3.31)}) 12. h3 $14 {[%emt 0:02:41]} (12. dxc5 Nxe5 13. Be2 Nc4 $11) 12... Bh5 {[%emt 0:03:46]} 13. Qb1 {[%emt 0:03:04]} Bxf3 {[%emt 0:03:00]} 14. gxf3 {[%emt 0:00:04]} (14. Bxh7+ Kh8 15. Bd3 (15. gxf3 g6 $17) 15... Bh5 $17) 14... g6 {[%emt 0:00:20]} 15. f4 {[%emt 0:04:49]} cxd4 {[%emt 0:03:44]} 16. cxd4 {[%emt 0:00:34]} f5 {[%emt 0:01:04]} (16... Rb8 $14) 17. a3 {[%emt 0:03:10]} (17. Qxb7 $16 Nb4 18. Bb5) 17... Qd7 {[%emt 0:01:21]} 18. Kh2 {[%emt 0:00:44]} Rac8 {[%emt 0:00:19]} 19. Qa2 {[%emt 0:01:26]} Na5 {[%emt 0:00:47]} 20. Rac1 {[%emt 0:00:03]} ({Better is} 20. a4 $14) 20... b5 $1 $11 {[%emt 0:00:08]} 21. Rg1 {[%emt 0:03:05]} Nc4 {[%emt 0:00:11]} (21... Kh8 {is more complex.} 22. Kg3 Nc4 23. a4 a6) 22. a4 {[%emt 0:00:08]} a6 {[%emt 0:00:20]} 23. axb5 {[%emt 0:00:05]} axb5 {[%emt 0:00:01]} 24. Qb3 {[%emt 0:00:12]} Rc7 {[%emt 0:00:14]} 25. Ra1 {[%emt 0:00:47]} b4 {[%emt 0:01:26]} 26. Ra6 {[%emt 0:00:24]} Qc8 {[%emt 0:00:32]} 27. Qa4 {[%emt 0:03:09]} Nb2 {[%emt 0:00:47][%csl LRa4,LRd3]} 28. Qb3 {[%emt 0:00:01][%csl LRb2,LRd5]} Nxd3 {[%emt 0:00:38]} 29. Qxd3 {[%emt 0:00:01]} (29. Rb6 $2 Rc3 30. Qxd5+ Kh8 $19) 29... Qd7 {[%emt 0:00:36]} 30. Bd2 {[%emt 0:00:24][%cal Oh3h4]} Rc4 {[%emt 0:00:01]} (30... Rb8 $5) 31. Rga1 {[%emt 0:00:19]} Rfc8 {[%emt 0:00:15]} 32. Ra7 {[%emt 0:00:06]} R8c7 {[%emt 0:00:09]} 33. Ra8+ {[%emt 0:00:08]} Kg7 {[%emt 0:00:09][%cal Bg8g7,Bg7f7,Bf7e6][%mdl 32]} 34. Rb8 {[%emt 0:00:15]} Rb7 {[%emt 0:00:04]} (34... Ra7 {seems wilder.} 35. Ra8 Rxa8 36. Rxa8 Qb7) 35. Rxb7 {[%emt 0:00:33]} Qxb7 {[%emt 0:00:01]} 36. Rb1 {[%emt 0:00:06]} Qb6 {[%emt 0:00:11]} 37. Be3 {[%emt 0:00:03]} Qa7 {[%emt 0:00:04]} 38. Rg1 {[%emt 0:00:06]} Kf7 {[%emt 0:00:09] Threatens to win with ...Qa2.} 39. Qd1 {[%emt 0:00:11]} (39. Rb1 $17 {might work better.}) 39... Qa2 $19 {[%emt 0:00:38]} 40. Qf3 {[%emt 0:00:21]} Rc3 $2 {[%emt 0:00:05]} (40... Ke6 $19 {Hoping for ...b3.} 41. h4 Bxh4) 41. Qg2 $2 {[%emt 0:00:09][%mdl 8192]} (41. h4 $1 $11 {and White has nothing to worry.}) 41... Ke6 {[%emt 0:00:19]} 42. h4 {[%emt 0:00:14]} (42. Re1 $142 b3 43. Qf1) 42... Bxh4 {[%emt 0:00:17] White must now prevent ...b3. White is weak on the light squares} 43. Qh3 $2 {[%emt 0:00:08] [#]} (43. Re1 {was the only chance.}) 43... Rxe3 $1 {[%emt 0:00:15][%mdl 512]} 44. Qxh4 {[%emt 0:00:04][%mdl 4096] Endgame KQR-KQR} Rf3 $2 {[%emt 0:00:08][%mdl 8192] Active counter play!} (44... Ra3 $11) 45. Qf6+ {[%emt 0:00:04]} Kd7 {[%emt 0:00:01]} 46. e6+ $1 {[%emt 0:00:12]} Kc7 {[%emt 0:00:06]} 47. Rc1+ {[%emt 0:00:09]} Rc3 {[%emt 0:00:01]} 48. Qe7+ $2 {[%emt 0:00:05]} (48. Qe5+ $1 $18 Kb7 49. Rf1) 48... Kc6 $11 {[%emt 0:00:06]} 49. Qd7+ {[%emt 0:00:31]} Kb6 {[%emt 0:00:02] Really sharp!} 50. Qd6+ {[%emt 0:00:05]} Kb5 $2 {[%emt 0:00:15][%mdl 8192] [#]} (50... Ka7 $1 $11 51. Rf1 (51. Qe7+ Ka6 $11) 51... Qe2 52. Ra1+ Ra3 53. Rxa3+ bxa3 54. Qxa3+ Kb7 55. Qe7+ Ka6) 51. Qb8+ $4 {[%emt 0:00:10][%mdl 8192]} (51. Qd7+ Kc4 52. Kg2 (52. Qc6+ Kd3 $11) 52... Qe2 53. Rxc3+ Kxc3 $11) (51. Rf1 $1 $18 {was the only winning move.}) 51... Kc4 $19 {[%emt 0:00:09]} 52. Qc7+ $2 {[%emt 0:00:12] [#]} (52. Rxc3+ bxc3 53. Kg2) 52... Kd3 $1 {[%emt 0:00:16]} (52... Kxd4 53. Qb6+ (53. Qxh7 $2 Qxf2+ 54. Kh1 Rxc1#) (53. Rd1+ Ke4 $11) 53... Kc4 54. e7 Rxc1 55. e8=Q $16 (55. e8=B $2 Qd2 $19)) (52... Kb3 53. Rxc3+ bxc3 54. Qb7+ Kc4 55. Kg2 $15) 53. Rxc3+ {[%emt 0:00:13]} bxc3 {[%emt 0:00:01]} 54. Kg2 {[%emt 0:00:05]} Qe2 {[%emt 0:00:15]} (54... Kxd4 55. Qe5+ Kd3 56. e7 $18) 55. e7 {[%emt 0:00:07]} c2 {[%emt 0:00:14] ( -> ...Qe1)} (55... Kxd4 $2 56. Qb6+ Kd3 57. Qb5+ Kd2 58. Qxe2+ (58. e8=R {is a self mate.} Qxb5 59. Rh8 c2 60. Rc8 c1=Q 61. Rxc1 Kxc1 62. Kg1 Kd2 63. Kh2 Qf1 64. Kg3 Qg1+ 65. Kh3 Ke2 66. f3 Kxf3 67. Kh4 Qg4#) (58. e8=Q Qg4+ 59. Kh2 Qh5+ 60. Kg3 Qg4+ 61. Kh2 Qh5+ 62. Kg3 Qg4+ 63. Kh2 $11) 58... Kxe2 59. e8=Q+ $18 (59. e8=B {leads to mate.} c2 60. Kg3 c1=Q 61. Bb5+ Ke1 62. Bd7 Qc5 63. Bxf5 Qxf2+ 64. Kg4 Qg2+ {[%mdl 64] Deflection} 65. Kh4 gxf5 66. Kh5 Qg6+ 67. Kh4 Qg4#)) 56. Qe5 {[%emt 0:00:21]} Qg4+ {[%emt 0:00:18]} (56... c1=B $2 57. Qxe2+ (57. e8=R Qg4+ 58. Kf1 Qf3 $15) 57... Kxe2 58. e8=Q+ $18 (58. e8=B Kd3 $17)) 57. Kh2 {[%emt 0:00:04]} c1=Q {[%emt 0:00:10] Black used his chance.   Weighted Error Value: White=0.84/Black=0.32} 0-1

[Event "American Cup Women Elimination 2023"]
[Site "Saint Louis"]
[Date "2023.03.21"]
[Round "2.1"]
[White "Tokhirjonova, Gulrukhbegim"]
[Black "Pourkashiyan, Atousa"]
[Result "1-0"]
[ECO "E36"]
[WhiteElo "2332"]
[BlackElo "2313"]
[Annotator "TA"]
[PlyCount "101"]
[EventDate "2023.03.15"]
[EventType "k.o."]
[EventCountry "USA"]
[SourceTitle "playchess.com"]
[Source "ChessBase"]
[SourceQuality "1"]
[TimeControl "1500+10"]

{[%evp 15,101,20,8,12,17,-20,-16,-34,5,-4,-6,-16,0,-64,-50,-47,-15,-24,-19,-19,-20,-26,-17,-9,-9,-28,-8,-62,-5,-5,-5,-4,0,0,32,38,33,38,47,46,175,159,165,173,162,164,173,134,124,126,139,120,164,179,177,90,161,150,181,13,188,88,169,165,164,0,100,79,131,73,197,167,201,165,183,157,280,287,318,275,312,316,1345,1341,29979,29980,29991,3035]} 1. d4 {[%emt 0:00:21]} Nf6 {[%emt 0:00:04]} 2. c4 {[%emt 0:00:05]} e6 {[%emt 0:00:03]} 3. Nc3 {[%emt 0:00:06]} Bb4 {[%emt 0:00:12]} 4. Qc2 {[%emt 0:00:19]} d5 {[%emt 0:00:22]} 5. a3 {[%emt 0:00:17]} Bxc3+ {[%emt 0:00:14]} 6. Qxc3 {[%emt 0:00:04]} O-O {[%emt 0:00:49]} 7. Nf3 {[%emt 0:00:22]} dxc4 {[%emt 0:00:23]} 8. Qxc4 {[%emt 0:00:25]} b6 {[%emt 0:00:04] Black is weak on the dark squares} 9. Bg5 {[%emt 0:00:43] E36: Nimzo-Indian: Classical: 4...d5 5 a3.} Ba6 {[%emt 0:00:04]} 10. Qc1 {[%emt 0:00:39]} Nbd7 {[%emt 0:00:41]} 11. e4 {[%emt 0:02:02] The position is equal.} Bxf1 {[%emt 0:00:28] [#]} (11... Qc8 {keeps more tension.} 12. Bxa6 Qxa6 13. Qc6 h6) 12. Kxf1 $146 {[%emt 0:00:03] Strongly threatening e5.} ({Predecessor:} 12. Rxf1 Qc8 13. Qc6 Qa6 14. e5 Qa5+ 15. b4 Qd5 16. Rc1 Qxc6 17. Rxc6 Nd5 18. Ke2 {½-½ Shankland,S (2710)-Gadimbayli,A (2524) Gashimov Memorial Rapid 8th 2022 (3)}) 12... h6 {[%emt 0:00:42]} 13. Bh4 {[%emt 0:00:06] And now e5 would win.} Qc8 {[%emt 0:01:55]} 14. Qe3 {[%emt 0:03:50]} (14. Qc6 $11) 14... c5 $15 {[%emt 0:00:42]} 15. h3 {[%emt 0:00:38]} cxd4 {[%emt 0:02:21]} 16. Nxd4 {[%emt 0:00:06]} Qc4+ {[%emt 0:01:09]} 17. Kg1 {[%emt 0:00:09]} e5 {[%emt 0:00:25]} 18. Nf5 {[%emt 0:03:43]} Qxe4 {[%emt 0:00:14]} 19. Qxe4 {[%emt 0:00:30]} Nxe4 {[%emt 0:00:03]} 20. Rd1 {[%emt 0:00:14]} Ndc5 {[%emt 0:03:35]} 21. b4 {[%emt 0:01:34]} (21. Re1 $11) 21... Nc3 {[%emt 0:03:07]} (21... Ne6 $1 $15) 22. Re1 $11 {[%emt 0:00:14]} Nd3 {[%emt 0:06:35] Excellent horsemanship.} 23. Re3 {[%emt 0:00:27]} e4 {[%emt 0:00:03]} 24. f3 {[%emt 0:00:31]} Rfe8 {[%emt 0:01:24]} 25. fxe4 {[%emt 0:01:31]} Nf4 {[%emt 0:00:13][%cal Oe8e4]} 26. Kh2 {[%emt 0:00:22]} (26. Rxc3 $2 {perishes.} Ne2+ 27. Kh2 Nxc3 $19) (26. Ne7+ Kf8 27. Kh2 g5 $15) 26... Nb5 {[%emt 0:01:23]} 27. Rd1 {[%emt 0:01:40]} a5 {[%emt 0:00:35]} (27... Ng6 $14) 28. a4 $18 {[%emt 0:01:20] Hoping for bxa5.} Nc7 {[%emt 0:00:02] [#]} 29. b5 {[%emt 0:01:38]} Nce6 {[%emt 0:00:03]} 30. Nd6 {[%emt 0:01:02]} Rf8 {[%emt 0:00:44]} 31. Be7 {[%emt 0:00:43]} Rfb8 {[%emt 0:00:01]} 32. Nc4 {[%emt 0:00:21]} Rb7 {[%emt 0:00:44] Inhibits Rd7.} 33. Ba3 {[%emt 0:00:25]} Ng5 {[%emt 0:00:57]} 34. h4 {[%emt 0:00:26]} Nge6 {[%emt 0:00:02] [#]} 35. g3 {[%emt 0:00:21]} (35. Rd6 $1 $18) 35... Ng6 {[%emt 0:00:10]} (35... Rc8 $16) 36. Rd6 {[%emt 0:00:39]} Rab8 {[%emt 0:00:07]} 37. Red3 $2 {[%emt 0:00:25]} ({White should play} 37. Kh3 $18) 37... Ngf8 $2 {[%emt 0:00:10]} (37... Rc7 $1 $11 {and Black has nothing to worry.} 38. Rc6 (38. Nxb6 Ne5 $11) (38. Rxb6 Rbc8 $11) 38... Rxc6 39. bxc6 Rc8) 38. Ne5 {[%emt 0:01:18]} (38. Kh3 $18 {and White stays clearly on top.}) 38... Rc8 {[%emt 0:00:15]} (38... Rc7 $16) 39. Rc6 {[%emt 0:00:23]} Rcb8 {[%emt 0:00:18]} 40. Rcd6 {[%emt 0:00:53]} (40. Rd5 $18) 40... Rc8 $16 {[%emt 0:00:05]} 41. Nc6 $36 {[%emt 0:00:02][%mdl 2048] White is really pushing. White has more active pieces.} h5 {[%emt 0:00:11]} (41... Rbc7 $142) 42. Rd2 {[%emt 0:00:06]} (42. R6d5 $142) 42... Ng6 {[%emt 0:00:02] Repels Ne7+} (42... g6 $16 {was called for.}) 43. Rd7 {[%emt 0:00:12]} Rcc7 {[%emt 0:00:22]} 44. Rxc7 {[%emt 0:00:28]} Rxc7 {[%emt 0:00:01]} 45. Rd5 {[%emt 0:00:13]} Nef8 {[%emt 0:00:25]} (45... f6 $16 {keeps fighting.} 46. Rxh5 Kf7) 46. Rxh5 $18 {[%emt 0:00:34]} f6 {[%emt 0:00:05]} 47. Rd5 {[%emt 0:00:04] aiming for h5.} Nd7 {[%emt 0:00:06]} 48. Bd6 {[%emt 0:00:09] Dodges Nge5} Rc8 {[%emt 0:00:10]} (48... Rb7 49. Kh3 Ngf8) 49. h5 {[%emt 0:00:03][%cal Bh4h5,Bh5g6][%mdl 32]} Re8 {[%emt 0:00:13]} 50. hxg6 {[%emt 0:00:03]} Rxe4 {[%emt 0:00:04]} 51. Be7 {[%emt 0:00:07] Weighted Error Value: White=0.28 (precise) /Black=0.47} (51. Bf4 $142 Re8 52. Rxd7 Re2+ 53. Kh3 Re8 54. Rf7 Re6 55. Ne7+ Rxe7 56. Rxe7 Kf8 57. Re6 f5 58. Bd6+ Kg8 59. Re8#) 1-0

[Event "American Cup Women Elimination 2023"]
[Site "Saint Louis"]
[Date "2023.03.21"]
[Round "2.1"]
[White "Paikidze, Nazi"]
[Black "Abrahamyan, Tatev"]
[Result "1-0"]
[ECO "E01"]
[WhiteElo "2314"]
[BlackElo "2294"]
[Annotator "TA"]
[PlyCount "67"]
[EventDate "2023.03.15"]
[EventType "k.o."]
[EventCountry "USA"]
[SourceTitle "playchess.com"]
[Source "ChessBase"]
[SourceQuality "1"]
[TimeControl "1500+10"]

{[%evp 9,67,34,34,31,36,29,29,26,28,31,52,45,31,33,106,38,119,110,133,125,123,138,154,98,105,104,97,89,106,94,101,90,95,97,95,102,98,74,104,-75,200,165,180,95,332,323,1112,1079,1556,1286,1286,1087,1031,1059,1018,1012,981,960,1016,995]} 1. d4 {[%emt 0:00:02]} Nf6 {[%emt 0:00:02]} 2. c4 {[%emt 0:00:02]} e6 {[%emt 0:00:02]} 3. g3 {[%emt 0:00:02]} d5 {[%emt 0:00:08]} 4. Nf3 {[%emt 0:00:03]} h6 {[%emt 0:00:03]} 5. Bg2 {[%emt 0:00:02]} Bd6 {[%emt 0:00:02]} 6. O-O {[%emt 0:00:03] E01: Catalan: Early deviations.} O-O {[%emt 0:00:07]} 7. b3 {[%emt 0:00:02]} b6 {[%emt 0:00:35]} 8. Bb2 {[%emt 0:00:02] White has an edge.} Bb7 {[%emt 0:00:12]} 9. Nc3 {[%emt 0:00:02]} a6 {[%emt 0:01:03]} 10. Rc1 {[%emt 0:00:04]} Nbd7 {[%emt 0:00:14]} 11. Nd2 {[%emt 0:03:29] [#]} c5 $146 {[%emt 0:05:17] [#]} (11... Qe7 $14) ({Predecessor:} 11... Re8 12. e4 c5 13. exd5 exd5 14. Nxd5 Nxd5 15. cxd5 Bf8 16. Nc4 Nf6 17. dxc5 Bxc5 {1-0 Gelfand,B (2663)-Nihal,S (2662) Wch Rapid Warsaw 2021 (13)}) 12. dxc5 {[%emt 0:00:04]} ({White should play} 12. cxd5 $1 $16 {Threatens to win with Nce4.} Nxd5 13. Nxd5 Bxd5 14. e4) 12... bxc5 {[%emt 0:01:51]} (12... Bxc5 $14 13. cxd5 exd5) 13. cxd5 $16 {[%emt 0:00:34]} exd5 {[%emt 0:00:24]} 14. Nc4 {[%emt 0:00:07]} dxc4 {[%emt 0:02:20]} 15. Bxb7 {[%emt 0:00:33]} Ra7 {[%emt 0:00:45]} 16. Qxd6 {[%emt 0:00:28]} (16. Bg2 $142 Nb6 17. Na4) 16... Rxb7 {[%emt 0:00:01]} 17. Qxa6 {[%emt 0:00:06] White is much more active.} Qa8 {[%emt 0:03:29]} 18. Qxc4 {[%emt 0:00:34]} Rb4 {[%emt 0:00:29] Prevents Na4} 19. Qd3 {[%emt 0:00:03]} c4 {[%emt 0:00:55]} 20. Qf5 {[%emt 0:05:37]} (20. bxc4 $2 Rxb2 21. Qd4 Rfb8 $19) 20... cxb3 {[%emt 0:00:48]} 21. a3 {[%emt 0:00:02]} Rb6 {[%emt 0:01:37]} 22. Rfd1 {[%emt 0:00:30]} Re6 {[%emt 0:01:04]} 23. e4 {[%emt 0:02:11]} Rfe8 {[%emt 0:02:44]} 24. Nb5 $2 {[%emt 0:01:59] [#]} (24. Nd5 $16 {Nc7 is the strong threat.} Rc6 25. Qf3 (25. Rxc6 Qxc6 26. Rc1 Qa4 $16) 25... Rxc1 26. Rxc1) 24... g6 $2 {[%emt 0:01:36][%mdl 8192]} (24... Qxe4 $2 25. Qxe4 Rxe4 26. Nd6 $18) (24... Re5 $1 $17 {[%cal Re5f5] and life is bright.} 25. Bxe5 Rxe5) 25. Qf3 $36 {[%emt 0:04:13][%mdl 2048] White is really pushing.} Rxe4 {[%emt 0:00:55][%cal Oe4e1]} 26. Qc3 {[%emt 0:02:47] Prevents Re1+} (26. Bxf6 $6 Re1+ 27. Kg2 Qxf3+ 28. Kxf3 Rxd1 29. Rxd1 Nxf6 $11) ({White should try} 26. Qxb3 $1 $18 {Nd6 would be deadly.} Qb8 27. a4) 26... R8e5 $2 {[%emt 0:00:27]} (26... Re2 $16 {keeps fighting.} 27. Nc7 (27. Qxb3 Nc5 $11) (27. Rxd7 Rxf2 {[%mdl 64] Decoy} 28. Kxf2 Ne4+ 29. Kg1 Nxc3 $14) 27... Qa7) 27. Nd6 {[%emt 0:01:21]} (27. Qxb3 Nc5 28. Qc3 Ng4 $16) 27... Re2 $2 {[%emt 0:00:34]} (27... Rc5 28. Qxc5 (28. Qxb3 Re6 $16) 28... Nxc5 29. Bxf6 (29. Rxc5 Ne8 $18 {[%mdl 64] Decoy}) 29... Re6) 28. Qxb3 {[%emt 0:00:47] White is clearly winning.} Rxb2 {[%emt 0:00:55]} 29. Qxf7+ {[%emt 0:00:29]} Kh8 {[%emt 0:00:01]} 30. Qxg6 {[%emt 0:00:49][%cal Rd6f7]} Re7 {[%emt 0:00:13]} 31. Rc8+ {[%emt 0:00:16]} ({Weaker is} 31. Qxh6+ Rh7 32. Qf4 Rb8 $16) 31... Qxc8 {[%emt 0:00:01]} 32. Nxc8 {[%emt 0:00:01]} Rg7 {[%emt 0:00:20]} 33. Qxh6+ {[%emt 0:00:06]} Kg8 {[%emt 0:00:01]} 34. Qe3 {[%emt 0:00:21] Artfully played by Paikidze.   Weighted Error Value: White=0.29 (precise) /Black=0.34} 1-0